[Event "Titled Tuesday Blitz March 08 Early 2022"]
[White "Yandarbiev, Ruslan"]
[Black "Kouskoutis, Georgios-Alexandros"]
[WhiteFideId "4115023"]
[BlackFideId "4234049"]
[WhiteElo "2102"]
[BlackElo "2130"]
[Result "0-1"]
[Round "08"]
[TimeControl "180+1"]
[Date "2022.03.09"]
[WhiteClock "0:00:03"]
[BlackClock "0:00:03"]

1. e4 {[%clk 0:02:54]}  c5 {[%clk 0:02:59]} 2. Nf3 {[%clk 0:02:55]}  e6 {[%clk 0:02:59]} 3. Nc3 {[%clk 0:02:56]}  Nc6 {[%clk 0:02:59]} 4. d4 {[%clk 0:02:57]}  cxd4 {[%clk 0:02:59]} 5. Nxd4 {[%clk 0:02:57]}  Qc7 {[%clk 0:02:59]} 6. Be3 {[%clk 0:02:58]}  a6 {[%clk 0:02:59]} 7. f4 {[%clk 0:02:59]}  b5 {[%clk 0:02:55]} 8. Nb3 {[%clk 0:02:58]}  Bb7 {[%clk 0:02:50]} 9. Bd3 {[%clk 0:02:58]}  h5 {[%clk 0:02:27]} 10. a4 {[%clk 0:02:58]}  b4 {[%clk 0:02:27]} 11. Nb1 {[%clk 0:02:58]}  Nf6 {[%clk 0:02:24]} 12. h3 {[%clk 0:02:52]}  h4 {[%clk 0:02:04]} 13. O-O {[%clk 0:02:45]}  Nh5 {[%clk 0:01:36]} 14. a5 {[%clk 0:02:43]}  Ng3 {[%clk 0:01:22]} 15. Rf2 {[%clk 0:02:42]}  Rc8 {[%clk 0:01:19]} 16. Bb6 {[%clk 0:02:39]}  Qb8 {[%clk 0:01:18]} 17. N1d2 {[%clk 0:02:39]}  Bd6 {[%clk 0:01:11]} 18. Qg4 {[%clk 0:02:25]}  g6 {[%clk 0:01:07]} 19. Nc4 {[%clk 0:02:15]}  Be7 {[%clk 0:00:59]} 20. Rd1 {[%clk 0:01:40]}  Nd8 {[%clk 0:00:35]} 21. Bd4 {[%clk 0:01:28]}  Rf8 {[%clk 0:00:30]} 22. Nb6 {[%clk 0:01:24]}  Bxe4 {[%clk 0:00:19]} 23. Nxc8 {[%clk 0:01:12]}  Qxc8 {[%clk 0:00:18]} 24. Bxe4 {[%clk 0:00:48]}  Nxe4 {[%clk 0:00:19]} 25. Re2 {[%clk 0:00:49]}  d5 {[%clk 0:00:18]} 26. Bf2 {[%clk 0:00:40]}  Nc6 {[%clk 0:00:12]} 27. Bxh4 {[%clk 0:00:36]}  Bxh4 {[%clk 0:00:09]} 28. Qxh4 {[%clk 0:00:37]}  Nxa5 {[%clk 0:00:07]} 29. Rxe4 {[%clk 0:00:29]}  Nxb3 {[%clk 0:00:05]} 30. Re2 {[%clk 0:00:23]}  Nc5 {[%clk 0:00:03]} 31. Kh2 {[%clk 0:00:22]}  a5 {[%clk 0:00:04]} 32. Rf1 {[%clk 0:00:16]}  Qc7 {[%clk 0:00:04]} 33. Kh1 {[%clk 0:00:15]}  Qe7 {[%clk 0:00:03]} 34. Qe1 {[%clk 0:00:14]}  Rh8 {[%clk 0:00:03]} 35. f5 {[%clk 0:00:14]}  gxf5 {[%clk 0:00:03]} 36. Rxf5 {[%clk 0:00:14]}  Ne4 {[%clk 0:00:04]} 37. Rf3 {[%clk 0:00:12]}  f5 {[%clk 0:00:03]} 38. Qg1 {[%clk 0:00:11]}  Qg5 {[%clk 0:00:03]} 39. Qa7 {[%clk 0:00:11]}  Rh4 {[%clk 0:00:02]} 40. Qb8+ {[%clk 0:00:09]}  Kf7 {[%clk 0:00:03]} 41. Qc7+ {[%clk 0:00:10]}  Qe7 {[%clk 0:00:04]} 42. Qe5 {[%clk 0:00:09]}  Nf6 {[%clk 0:00:02]} 43. Ref2 {[%clk 0:00:08]}  Re4 {[%clk 0:00:02]} 44. Qb8 {[%clk 0:00:07]}  Re1+ {[%clk 0:00:02]} 45. Rf1 {[%clk 0:00:06]}  Rxf1+ {[%clk 0:00:01]} 46. Rxf1 {[%clk 0:00:07]}  Ne4 {[%clk 0:00:02]} 47. Qe5 {[%clk 0:00:08]}  Qf6 {[%clk 0:00:02]} 48. Qc7+ {[%clk 0:00:06]}  Kg6 {[%clk 0:00:02]} 49. Rf3 {[%clk 0:00:06]}  e5 {[%clk 0:00:01]} 50. Rd3 {[%clk 0:00:05]}  Nf2+ {[%clk 0:00:01]} 51. Kg1 {[%clk 0:00:04]}  Nxd3 {[%clk 0:00:02]} 52. cxd3 {[%clk 0:00:04]}  e4 {[%clk 0:00:03]} 53. Qg3+ {[%clk 0:00:01]}  Qg5 {[%clk 0:00:02]} 54. Qd6+ {[%clk 0:00:01]}  Kh5 {[%clk 0:00:03]} 55. Qd7 {[%clk 0:00:01]}  Qe3+ {[%clk 0:00:03]} 56. Kh2 {[%clk 0:00:02]}  Qf4+ {[%clk 0:00:03]} 57. Kh1 {[%clk 0:00:03]}  exd3 {[%clk 0:00:03]} 58. Qh7+ {[%clk 0:00:01]}  Kg5 {[%clk 0:00:03]} 59. Qg7+ {[%clk 0:00:01]}  Kh4 {[%clk 0:00:04]} 60. Qh7+ {[%clk 0:00:01]}  Kg3 {[%clk 0:00:04]} 61. Qg7+ {[%clk 0:00:01]}  Kf2 {[%clk 0:00:05]} 62. Qa7+ {[%clk 0:00:02]}  Qe3 {[%clk 0:00:05]} 63. Qf7 {[%clk 0:00:02]}  f4 {[%clk 0:00:05]} 64. Kh2 {[%clk 0:00:03]}  d2 {[%clk 0:00:03]} 65. Qg6 {[%clk 0:00:02]}  d1=Q {[%clk 0:00:03]} 66. Qg4 {[%clk 0:00:03]}  Qxg4 {[%clk 0:00:03]} 67. hxg4 {[%clk 0:00:03]}  Qg3+ {[%clk 0:00:03]} 0-1


[Site "https://www.chess.com"]

[Event "Titled Tuesday Blitz March 08 Early 2022"]
[White "Yuan, Qingyu"]
[Black "Atakhan, Abtin"]
[WhiteFideId "8609772"]
[BlackFideId "22502203"]
[WhiteElo "2359"]
[BlackElo "2119"]
[Result "1-0"]
[Round "08"]
[TimeControl "180+1"]
[Date "2022.03.08"]
[WhiteClock "0:00:20"]
[BlackClock "0:01:10"]

1. e4 {[%clk 0:03:00]}  c6 {[%clk 0:02:59]} 2. Nf3 {[%clk 0:03:01]}  d5 {[%clk 0:03:00]} 3. Nc3 {[%clk 0:03:01]}  dxe4 {[%clk 0:03:01]} 4. Nxe4 {[%clk 0:03:02]}  Nf6 {[%clk 0:03:01]} 5. Qe2 {[%clk 0:03:03]}  Nxe4 {[%clk 0:03:01]} 6. Qxe4 {[%clk 0:03:04]}  Nd7 {[%clk 0:03:02]} 7. d4 {[%clk 0:03:04]}  Nf6 {[%clk 0:03:02]} 8. Qf4 {[%clk 0:03:04]}  g6 {[%clk 0:03:02]} 9. Bd3 {[%clk 0:03:04]}  Bf5 {[%clk 0:03:03]} 10. Bxf5 {[%clk 0:02:54]}  Qa5+ {[%clk 0:03:03]} 11. c3 {[%clk 0:02:46]}  Qxf5 {[%clk 0:03:04]} 12. Qe3 {[%clk 0:02:31]}  Bg7 {[%clk 0:03:01]} 13. O-O {[%clk 0:02:30]}  Nd5 {[%clk 0:02:59]} 14. Qe2 {[%clk 0:02:27]}  O-O {[%clk 0:02:59]} 15. c4 {[%clk 0:02:23]}  Nb6 {[%clk 0:02:56]} 16. Qxe7 {[%clk 0:02:14]}  Nxc4 {[%clk 0:02:50]} 17. Qxb7 {[%clk 0:02:14]}  Qd5 {[%clk 0:02:45]} 18. b3 {[%clk 0:02:00]}  Nd6 {[%clk 0:02:45]} 19. Qa6 {[%clk 0:01:55]}  Nf5 {[%clk 0:02:44]} 20. Bb2 {[%clk 0:01:50]}  Nxd4 {[%clk 0:02:38]} 21. Bxd4 {[%clk 0:01:38]}  Bxd4 {[%clk 0:02:38]} 22. Nxd4 {[%clk 0:01:26]}  Qxd4 {[%clk 0:02:38]} 23. Qxc6 {[%clk 0:01:27]}  Rfc8 {[%clk 0:02:39]} 24. Qf3 {[%clk 0:01:26]}  Rab8 {[%clk 0:02:39]} 25. Rad1 {[%clk 0:01:19]}  Qg7 {[%clk 0:02:09]} 26. Rd7 {[%clk 0:01:17]}  a5 {[%clk 0:02:10]} 27. Qd5 {[%clk 0:01:14]}  Ra8 {[%clk 0:02:09]} 28. Re1 {[%clk 0:01:09]}  Qf6 {[%clk 0:02:07]} 29. g3 {[%clk 0:01:05]}  a4 {[%clk 0:02:03]} 30. Re3 {[%clk 0:01:03]}  axb3 {[%clk 0:02:02]} 31. axb3 {[%clk 0:00:53]}  Ra1+ {[%clk 0:01:57]} 32. Kg2 {[%clk 0:00:53]}  Rcc1 {[%clk 0:01:57]} 33. Rf3 {[%clk 0:00:41]}  Qe6 {[%clk 0:01:31]} 34. Qxe6 {[%clk 0:00:37]}  fxe6 {[%clk 0:01:32]} 35. Rff7 {[%clk 0:00:36]}  Rab1 {[%clk 0:01:30]} 36. Rg7+ {[%clk 0:00:35]}  Kf8 {[%clk 0:01:30]} 37. Rxh7 {[%clk 0:00:36]}  Kg8 {[%clk 0:01:29]} 38. Rdg7+ {[%clk 0:00:35]}  Kf8 {[%clk 0:01:29]} 39. Rxg6 {[%clk 0:00:32]}  Rg1+ {[%clk 0:01:29]} 40. Kh3 {[%clk 0:00:31]}  Rxb3 {[%clk 0:01:30]} 41. Rxe6 {[%clk 0:00:21]}  Rf3 {[%clk 0:01:30]} 42. Ra6 {[%clk 0:00:21]}  Kg8 {[%clk 0:01:25]} 43. Rb7 {[%clk 0:00:20]}  Rf8 {[%clk 0:01:16]} 44. f4 {[%clk 0:00:20]}  Re1 {[%clk 0:01:16]} 45. Kg4 {[%clk 0:00:20]}  Ree8 {[%clk 0:01:14]} 46. Rg6+ {[%clk 0:00:20]}  Kh8 {[%clk 0:01:14]} 47. Rb5 {[%clk 0:00:20]}  Kh7 {[%clk 0:01:12]} 48. Rbg5 {[%clk 0:00:20]}  Rf7 {[%clk 0:01:11]} 49. Kh5 {[%clk 0:00:20]}  Rh8 {[%clk 0:01:10]} 50. Rh6# {[%clk 0:00:20]} 1-0


[Site "https://www.chess.com"]

[Event "Titled Tuesday Blitz March 08 Early 2022"]
[White "Zaksaite, Salomeja"]
[Black "Butti, Enrique"]
[WhiteFideId "12801496"]
[BlackFideId "3700470"]
[WhiteElo "1953"]
[BlackElo "2080"]
[Result "1-0"]
[Round "08"]
[TimeControl "180+1"]
[Date "2022.03.09"]
[WhiteClock "0:01:33"]
[BlackClock "0:01:19"]

1. e4 {[%clk 0:02:56]}  c5 {[%clk 0:02:59]} 2. Nf3 {[%clk 0:02:55]}  d6 {[%clk 0:02:58]} 3. d4 {[%clk 0:02:54]}  cxd4 {[%clk 0:02:57]} 4. Nxd4 {[%clk 0:02:55]}  Nf6 {[%clk 0:02:56]} 5. Nc3 {[%clk 0:02:55]}  a6 {[%clk 0:02:56]} 6. Bc4 {[%clk 0:02:53]}  e6 {[%clk 0:02:55]} 7. Bb3 {[%clk 0:02:53]}  Nc6 {[%clk 0:02:54]} 8. O-O {[%clk 0:02:51]}  Bd7 {[%clk 0:02:53]} 9. Bg5 {[%clk 0:02:43]}  Be7 {[%clk 0:02:52]} 10. Be3 {[%clk 0:02:10]}  Rc8 {[%clk 0:02:45]} 11. Qe2 {[%clk 0:02:09]}  O-O {[%clk 0:02:25]} 12. Rad1 {[%clk 0:02:07]}  Qa5 {[%clk 0:02:17]} 13. f3 {[%clk 0:01:55]}  Ne5 {[%clk 0:02:05]} 14. g4 {[%clk 0:01:52]}  b5 {[%clk 0:01:55]} 15. g5 {[%clk 0:01:48]}  Ne8 {[%clk 0:01:53]} 16. f4 {[%clk 0:01:45]}  Nc4 {[%clk 0:01:52]} 17. Bc1 {[%clk 0:01:45]}  Bd8 {[%clk 0:01:40]} 18. f5 {[%clk 0:01:44]}  Bb6 {[%clk 0:01:36]} 19. Kh1 {[%clk 0:01:43]}  Ne5 {[%clk 0:01:24]} 20. fxe6 {[%clk 0:01:36]}  fxe6 {[%clk 0:01:20]} 21. Nxe6 {[%clk 0:01:35]}  Rxf1+ {[%clk 0:01:19]} 22. Rxf1 {[%clk 0:01:33]} 1-0


[Site "https://www.chess.com"]

[Event "Titled Tuesday Blitz March 08 Early 2022"]
[White "Zemerov, Vladimir"]
[Black "Baches Garcia, Guillermo"]
[WhiteFideId "4111583"]
[BlackFideId "2209764"]
[WhiteElo "2277"]
[BlackElo "2404"]
[Result "0-1"]
[Round "08"]
[TimeControl "180+1"]
[Date "2022.03.09"]
[WhiteClock "0:00:44"]
[BlackClock "0:00:16"]

1. Nf3 {[%clk 0:03:00]}  d5 {[%clk 0:02:59]} 2. d4 {[%clk 0:02:58]}  Nf6 {[%clk 0:02:59]} 3. c4 {[%clk 0:02:58]}  e6 {[%clk 0:03:00]} 4. Nc3 {[%clk 0:02:57]}  c5 {[%clk 0:03:00]} 5. cxd5 {[%clk 0:02:56]}  Nxd5 {[%clk 0:03:01]} 6. e4 {[%clk 0:02:56]}  Nxc3 {[%clk 0:03:01]} 7. bxc3 {[%clk 0:02:56]}  cxd4 {[%clk 0:03:01]} 8. cxd4 {[%clk 0:02:55]}  Bb4+ {[%clk 0:03:02]} 9. Bd2 {[%clk 0:02:55]}  Bxd2+ {[%clk 0:03:03]} 10. Qxd2 {[%clk 0:02:55]}  O-O {[%clk 0:03:03]} 11. Bc4 {[%clk 0:02:54]}  Nd7 {[%clk 0:03:02]} 12. O-O {[%clk 0:02:53]}  b6 {[%clk 0:03:03]} 13. Rad1 {[%clk 0:02:52]}  Bb7 {[%clk 0:03:03]} 14. Rfe1 {[%clk 0:02:53]}  Rc8 {[%clk 0:03:03]} 15. Bb3 {[%clk 0:02:47]}  h6 {[%clk 0:03:03]} 16. Qf4 {[%clk 0:02:45]}  Qc7 {[%clk 0:02:54]} 17. Qh4 {[%clk 0:02:41]}  Nf6 {[%clk 0:02:44]} 18. d5 {[%clk 0:02:37]}  exd5 {[%clk 0:02:34]} 19. e5 {[%clk 0:02:23]}  Ne4 {[%clk 0:02:34]} 20. Bxd5 {[%clk 0:02:23]}  Nc3 {[%clk 0:02:09]} 21. Bxb7 {[%clk 0:02:21]}  Qxb7 {[%clk 0:02:09]} 22. Rd6 {[%clk 0:02:17]}  Nxa2 {[%clk 0:01:44]} 23. Qg3 {[%clk 0:02:03]}  Rc6 {[%clk 0:01:21]} 24. Nd4 {[%clk 0:01:56]}  Rxd6 {[%clk 0:01:18]} 25. exd6 {[%clk 0:01:56]}  Qd5 {[%clk 0:01:10]} 26. Qf4 {[%clk 0:01:37]}  Nb4 {[%clk 0:01:00]} 27. Re3 {[%clk 0:01:25]}  Rc8 {[%clk 0:00:30]} 28. h4 {[%clk 0:01:24]}  Rc4 {[%clk 0:00:26]} 29. Re8+ {[%clk 0:01:19]}  Kh7 {[%clk 0:00:26]} 30. d7 {[%clk 0:01:05]}  Qxd7 {[%clk 0:00:11]} 31. Qe4+ {[%clk 0:01:03]}  f5 {[%clk 0:00:10]} 32. Qxf5+ {[%clk 0:00:52]}  Qxf5 {[%clk 0:00:09]} 33. Nxf5 {[%clk 0:00:52]}  Kg6 {[%clk 0:00:08]} 34. Nd6 {[%clk 0:00:52]}  Rxh4 {[%clk 0:00:06]} 35. Ra8 {[%clk 0:00:50]}  a5 {[%clk 0:00:06]} 36. Nc8 {[%clk 0:00:49]}  Nd5 {[%clk 0:00:06]} 37. Ra7 {[%clk 0:00:48]}  Rc4 {[%clk 0:00:06]} 38. Rd7 {[%clk 0:00:47]}  Rxc8 {[%clk 0:00:05]} 39. Rxd5 {[%clk 0:00:48]}  a4 {[%clk 0:00:05]} 40. Rd6+ {[%clk 0:00:48]}  Kf5 {[%clk 0:00:05]} 41. Rxb6 {[%clk 0:00:48]}  Ra8 {[%clk 0:00:05]} 42. Rb2 {[%clk 0:00:48]}  a3 {[%clk 0:00:06]} 43. Ra2 {[%clk 0:00:49]}  Ke4 {[%clk 0:00:05]} 44. g4 {[%clk 0:00:49]}  Kd4 {[%clk 0:00:06]} 45. Kg2 {[%clk 0:00:50]}  Kc4 {[%clk 0:00:06]} 46. f4 {[%clk 0:00:49]}  Kb3 {[%clk 0:00:07]} 47. Ra1 {[%clk 0:00:50]}  a2 {[%clk 0:00:07]} 48. Kg3 {[%clk 0:00:48]}  Kb2 {[%clk 0:00:07]} 49. Rd1 {[%clk 0:00:48]}  a1=Q {[%clk 0:00:07]} 50. Rxa1 {[%clk 0:00:48]}  Rxa1 {[%clk 0:00:08]} 51. g5 {[%clk 0:00:48]}  hxg5 {[%clk 0:00:07]} 52. fxg5 {[%clk 0:00:48]}  Ra4 {[%clk 0:00:08]} 53. g6 {[%clk 0:00:48]}  Kc2 {[%clk 0:00:07]} 54. Kf3 {[%clk 0:00:49]}  Kd2 {[%clk 0:00:08]} 55. Kg3 {[%clk 0:00:47]}  Ra6 {[%clk 0:00:08]} 56. Kf4 {[%clk 0:00:47]}  Rxg6 {[%clk 0:00:09]} 57. Kf5 {[%clk 0:00:48]}  Rf6+ {[%clk 0:00:09]} 58. Kg5 {[%clk 0:00:48]}  Kc3 {[%clk 0:00:10]} 59. Kg4 {[%clk 0:00:49]}  Kd4 {[%clk 0:00:10]} 60. Kg5 {[%clk 0:00:49]}  Ke5 {[%clk 0:00:11]} 61. Kg4 {[%clk 0:00:50]}  Rf5 {[%clk 0:00:11]} 62. Kh4 {[%clk 0:00:50]}  Ke4 {[%clk 0:00:12]} 63. Kg4 {[%clk 0:00:50]}  g6 {[%clk 0:00:12]} 64. Kg3 {[%clk 0:00:50]}  Rg5+ {[%clk 0:00:12]} 65. Kf2 {[%clk 0:00:49]}  Kf4 {[%clk 0:00:12]} 66. Kf1 {[%clk 0:00:49]}  Rg3 {[%clk 0:00:13]} 67. Ke2 {[%clk 0:00:49]}  g5 {[%clk 0:00:13]} 68. Kd2 {[%clk 0:00:49]}  g4 {[%clk 0:00:14]} 69. Ke2 {[%clk 0:00:44]}  Re3+ {[%clk 0:00:14]} 70. Kf2 {[%clk 0:00:44]}  g3+ {[%clk 0:00:14]} 71. Kg2 {[%clk 0:00:44]}  Kg4 {[%clk 0:00:15]} 72. Kg1 {[%clk 0:00:44]}  Re8 {[%clk 0:00:15]} 73. Kg2 {[%clk 0:00:44]}  Rf8 {[%clk 0:00:15]} 74. Kg1 {[%clk 0:00:45]}  Kf3 {[%clk 0:00:15]} 75. Kf1 {[%clk 0:00:44]}  Re8 {[%clk 0:00:15]} 76. Kg1 {[%clk 0:00:44]}  Re1# {[%clk 0:00:16]} 0-1


[Site "https://www.chess.com"]

[Event "Titled Tuesday Blitz March 08 Early 2022"]
[White "Aaditya Dhingra"]
[Black "Gabdrakhmanov, Azat"]
[WhiteFideId "25678191"]
[BlackFideId "34189197"]
[WhiteElo "1849"]
[BlackElo "2279"]
[Result "0-1"]
[Round "09"]
[TimeControl "180+1"]
[Date "2022.03.09"]
[WhiteClock "0:00:53"]
[BlackClock "0:00:25"]

1. e4 {[%clk 0:03:00]}  c5 {[%clk 0:03:00]} 2. Nf3 {[%clk 0:03:00]}  e6 {[%clk 0:03:00]} 3. d4 {[%clk 0:03:00]}  cxd4 {[%clk 0:03:00]} 4. Nxd4 {[%clk 0:03:00]}  a6 {[%clk 0:03:01]} 5. Bd3 {[%clk 0:03:00]}  Nf6 {[%clk 0:03:01]} 6. O-O {[%clk 0:02:58]}  d6 {[%clk 0:03:01]} 7. Qe2 {[%clk 0:02:57]}  Be7 {[%clk 0:03:01]} 8. c4 {[%clk 0:02:57]}  Nbd7 {[%clk 0:03:01]} 9. Nc3 {[%clk 0:02:56]}  O-O {[%clk 0:03:01]} 10. f4 {[%clk 0:02:56]}  Re8 {[%clk 0:03:00]} 11. Be3 {[%clk 0:02:55]}  Bf8 {[%clk 0:03:00]} 12. Kh1 {[%clk 0:02:53]}  Nc5 {[%clk 0:02:54]} 13. Rac1 {[%clk 0:02:51]}  e5 {[%clk 0:02:52]} 14. Nf3 {[%clk 0:02:41]}  exf4 {[%clk 0:02:48]} 15. Bxc5 {[%clk 0:02:39]}  dxc5 {[%clk 0:02:46]} 16. e5 {[%clk 0:02:36]}  Ng4 {[%clk 0:02:41]} 17. Rfd1 {[%clk 0:02:27]}  Qb6 {[%clk 0:01:53]} 18. h3 {[%clk 0:02:03]}  Ne3 {[%clk 0:01:49]} 19. Nd5 {[%clk 0:02:01]}  Qh6 {[%clk 0:01:08]} 20. Nc7 {[%clk 0:01:43]}  Bg4 {[%clk 0:01:03]} 21. Nxa8 {[%clk 0:01:36]}  Rxa8 {[%clk 0:01:03]} 22. Kg1 {[%clk 0:01:36]}  Be6 {[%clk 0:00:57]} 23. Re1 {[%clk 0:01:34]}  Re8 {[%clk 0:00:56]} 24. Qf2 {[%clk 0:01:24]}  g5 {[%clk 0:00:50]} 25. Rxe3 {[%clk 0:01:12]}  fxe3 {[%clk 0:00:50]} 26. Qxe3 {[%clk 0:01:13]}  g4 {[%clk 0:00:48]} 27. Qe4 {[%clk 0:00:55]}  Qxc1+ {[%clk 0:00:33]} 28. Kh2 {[%clk 0:00:56]}  Qh6 {[%clk 0:00:33]} 29. Ng5 {[%clk 0:00:54]}  Bg7 {[%clk 0:00:32]} 30. Nxh7 {[%clk 0:00:53]}  Bd7 {[%clk 0:00:25]} 0-1


[Site "https://www.chess.com"]

[Event "Titled Tuesday Blitz March 08 Early 2022"]
[White "Aggelis, Nikolaos"]
[Black "Mohammad Fahad, Rahman"]
[WhiteFideId "4213220"]
[BlackFideId "10207791"]
[WhiteElo "2154"]
[BlackElo "2323"]
[Result "0-1"]
[Round "09"]
[TimeControl "180+1"]
[Date "2022.03.09"]
[WhiteClock "0:01:27"]
[BlackClock "0:00:30"]

1. d4 {[%clk 0:03:00]}  g6 {[%clk 0:02:58]} 2. g3 {[%clk 0:02:56]}  Bg7 {[%clk 0:02:58]} 3. Nf3 {[%clk 0:02:48]}  d6 {[%clk 0:02:58]} 4. Bg2 {[%clk 0:02:49]}  Nc6 {[%clk 0:02:57]} 5. O-O {[%clk 0:02:50]}  Bd7 {[%clk 0:02:58]} 6. Nc3 {[%clk 0:02:47]}  Qc8 {[%clk 0:02:57]} 7. Re1 {[%clk 0:02:46]}  h5 {[%clk 0:02:57]} 8. h4 {[%clk 0:02:46]}  Bh3 {[%clk 0:02:56]} 9. Bh1 {[%clk 0:02:45]}  Nf6 {[%clk 0:02:56]} 10. e4 {[%clk 0:02:46]}  O-O {[%clk 0:02:53]} 11. Bg5 {[%clk 0:02:41]}  Bg4 {[%clk 0:02:45]} 12. Qd2 {[%clk 0:02:38]}  Nh7 {[%clk 0:02:25]} 13. Bh6 {[%clk 0:02:34]}  Bxh6 {[%clk 0:02:22]} 14. Qxh6 {[%clk 0:02:32]}  Bxf3 {[%clk 0:02:22]} 15. Bxf3 {[%clk 0:02:31]}  Nxd4 {[%clk 0:02:22]} 16. Bxh5 {[%clk 0:02:06]}  gxh5 {[%clk 0:02:16]} 17. Nd5 {[%clk 0:02:07]}  Qe6 {[%clk 0:01:51]} 18. Qxh5 {[%clk 0:02:04]}  Nxc2 {[%clk 0:01:39]} 19. Nxc7 {[%clk 0:01:59]}  Qg6 {[%clk 0:01:22]} 20. Qxg6+ {[%clk 0:01:59]}  fxg6 {[%clk 0:01:22]} 21. Nxa8 {[%clk 0:01:57]}  Rxa8 {[%clk 0:01:21]} 22. e5 {[%clk 0:01:57]}  Nxa1 {[%clk 0:01:20]} 23. Rxa1 {[%clk 0:01:53]}  dxe5 {[%clk 0:01:20]} 24. Re1 {[%clk 0:01:54]}  Rc8 {[%clk 0:01:08]} 25. Rxe5 {[%clk 0:01:55]}  Rc2 {[%clk 0:01:06]} 26. Rxe7 {[%clk 0:01:51]}  Rxb2 {[%clk 0:01:06]} 27. a4 {[%clk 0:01:51]}  a5 {[%clk 0:01:06]} 28. Kg2 {[%clk 0:01:50]}  Rb4 {[%clk 0:01:06]} 29. f3 {[%clk 0:01:48]}  Nf6 {[%clk 0:01:06]} 30. g4 {[%clk 0:01:48]}  Nd5 {[%clk 0:01:04]} 31. Rd7 {[%clk 0:01:47]}  Nc3 {[%clk 0:01:01]} 32. Kg3 {[%clk 0:01:44]}  Nxa4 {[%clk 0:00:59]} 33. Rd8+ {[%clk 0:01:37]}  Kf7 {[%clk 0:00:57]} 34. Ra8 {[%clk 0:01:38]}  b6 {[%clk 0:00:55]} 35. g5 {[%clk 0:01:37]}  Nc3 {[%clk 0:00:53]} 36. Ra7+ {[%clk 0:01:35]}  Ke6 {[%clk 0:00:50]} 37. Rg7 {[%clk 0:01:36]}  Ne2+ {[%clk 0:00:32]} 38. Kf2 {[%clk 0:01:35]}  Nf4 {[%clk 0:00:32]} 39. h5 {[%clk 0:01:35]}  gxh5 {[%clk 0:00:31]} 40. Ke3 {[%clk 0:01:34]}  Nd5+ {[%clk 0:00:31]} 41. Kd3 {[%clk 0:01:33]}  a4 {[%clk 0:00:30]} 42. Rh7 {[%clk 0:01:29]}  Kf5 {[%clk 0:00:29]} 43. Rxh5 {[%clk 0:01:29]}  Nf4+ {[%clk 0:00:30]} 44. Kc3 {[%clk 0:01:27]}  Rb3+ {[%clk 0:00:30]} 0-1


[Site "https://www.chess.com"]

[Event "Titled Tuesday Blitz March 08 Early 2022"]
[White "Alonso Rosell, Alvar"]
[Black "Paravyan, David"]
[WhiteFideId "2270544"]
[BlackFideId "4194985"]
[WhiteElo "2474"]
[BlackElo "2569"]
[Result "1-0"]
[Round "09"]
[TimeControl "180+1"]
[Date "2022.03.08"]
[WhiteClock "0:00:03"]
[BlackClock "0:00:01"]

1. d4 {[%clk 0:03:00]}  Nf6 {[%clk 0:02:58]} 2. c4 {[%clk 0:03:01]}  g6 {[%clk 0:02:58]} 3. Nc3 {[%clk 0:03:00]}  d5 {[%clk 0:02:58]} 4. Nf3 {[%clk 0:02:57]}  Bg7 {[%clk 0:02:54]} 5. Qb3 {[%clk 0:02:57]}  dxc4 {[%clk 0:02:48]} 6. Qxc4 {[%clk 0:02:58]}  O-O {[%clk 0:02:47]} 7. e4 {[%clk 0:02:58]}  a6 {[%clk 0:02:47]} 8. e5 {[%clk 0:02:46]}  b5 {[%clk 0:02:48]} 9. Qb3 {[%clk 0:02:46]}  Nfd7 {[%clk 0:02:47]} 10. e6 {[%clk 0:02:43]}  fxe6 {[%clk 0:02:42]} 11. Be2 {[%clk 0:02:43]}  Nf6 {[%clk 0:02:27]} 12. O-O {[%clk 0:02:39]}  Nc6 {[%clk 0:02:22]} 13. Be3 {[%clk 0:02:38]}  Na5 {[%clk 0:02:20]} 14. Qc2 {[%clk 0:02:38]}  Nc4 {[%clk 0:02:12]} 15. Bxc4 {[%clk 0:02:21]}  bxc4 {[%clk 0:02:13]} 16. Qe2 {[%clk 0:02:10]}  Bb7 {[%clk 0:01:54]} 17. Ng5 {[%clk 0:02:10]}  Bd5 {[%clk 0:01:04]} 18. Bf4 {[%clk 0:02:04]}  Qd7 {[%clk 0:00:55]} 19. Be5 {[%clk 0:02:03]}  Rab8 {[%clk 0:00:51]} 20. Rfe1 {[%clk 0:01:58]}  Qc6 {[%clk 0:00:48]} 21. f3 {[%clk 0:01:50]}  Bh6 {[%clk 0:00:45]} 22. h4 {[%clk 0:01:26]}  Nh5 {[%clk 0:00:44]} 23. Rad1 {[%clk 0:01:23]}  Nf4 {[%clk 0:00:31]} 24. Bxf4 {[%clk 0:00:59]}  Rxf4 {[%clk 0:00:32]} 25. Nxd5 {[%clk 0:00:48]}  exd5 {[%clk 0:00:31]} 26. Ne6 {[%clk 0:00:41]}  Rf6 {[%clk 0:00:24]} 27. g4 {[%clk 0:00:36]}  Bf4 {[%clk 0:00:21]} 28. Kg2 {[%clk 0:00:21]}  Bd6 {[%clk 0:00:15]} 29. h5 {[%clk 0:00:12]}  Qd7 {[%clk 0:00:13]} 30. hxg6 {[%clk 0:00:11]}  Rxg6 {[%clk 0:00:13]} 31. f4 {[%clk 0:00:09]}  Rxe6 {[%clk 0:00:11]} 32. Qxe6+ {[%clk 0:00:08]}  Qxe6 {[%clk 0:00:12]} 33. Rxe6 {[%clk 0:00:09]}  Rxb2+ {[%clk 0:00:13]} 34. Kf3 {[%clk 0:00:06]}  Rxa2 {[%clk 0:00:12]} 35. f5 {[%clk 0:00:07]}  c3 {[%clk 0:00:12]} 36. Rc1 {[%clk 0:00:06]}  c2 {[%clk 0:00:10]} 37. Re2 {[%clk 0:00:06]}  Ra3+ {[%clk 0:00:09]} 38. Kg2 {[%clk 0:00:06]}  Rd3 {[%clk 0:00:09]} 39. Rcxc2 {[%clk 0:00:05]}  Rxd4 {[%clk 0:00:10]} 40. Kh3 {[%clk 0:00:04]}  Kf7 {[%clk 0:00:09]} 41. Re6 {[%clk 0:00:03]}  Rd3+ {[%clk 0:00:09]} 42. Kh4 {[%clk 0:00:03]}  Rd1 {[%clk 0:00:06]} 43. Rc3 {[%clk 0:00:02]}  Rh1+ {[%clk 0:00:05]} 44. Rh3 {[%clk 0:00:02]}  Rxh3+ {[%clk 0:00:04]} 45. Kxh3 {[%clk 0:00:03]}  a5 {[%clk 0:00:04]} 46. g5 {[%clk 0:00:03]}  a4 {[%clk 0:00:04]} 47. Kg4 {[%clk 0:00:02]}  a3 {[%clk 0:00:04]} 48. Re2 {[%clk 0:00:03]}  d4 {[%clk 0:00:04]} 49. Kf3 {[%clk 0:00:03]}  c5 {[%clk 0:00:04]} 50. Ke4 {[%clk 0:00:03]}  Kg7 {[%clk 0:00:01]} 51. Kd3 {[%clk 0:00:03]}  h6 {[%clk 0:00:01]} 52. g6 {[%clk 0:00:03]}  Kf6 {[%clk 0:00:01]} 53. Ra2 {[%clk 0:00:03]} 1-0


[Site "https://www.chess.com"]